bitfinex/quotes_ETHUSD_20241104
["timestamp","ask_amount","ask_price","bid_price","bid_amount"]
[1730703067810,0.0610922,2477.9,2477.8,7.1409252]
[1730703070719,0.0610922,2477.9,2477.8,10.7009252]
[1730703070914,0.0610922,2477.9,2477.8,12.44907091]
[1730703071709,0.0610922,2477.9,2477.8,12.74948904]
[1730703072189,0.0610922,2477.9,2477.8,12.74906638]
[1730703073047,0.0610922,2477.9,2477.8,14.39335777]
[1730703073486,0.0610922,2477.9,2477.8,14.09293964]
[1730703073947,0.0610922,2477.9,2477.8,12.44864825]
[1730703074089,0.0610922,2477.9,2477.8,13.29114838]
[1730703074291,0.0610922,2477.9,2477.8,12.74881274]
[1730703074593,0.0610922,2477.9,2477.8,14.39310413]
[1730703074793,0.0610922,2477.9,2477.8,12.74881274]
[1730703076626,0.0610922,2477.9,2477.8,12.74668167]
[1730703077206,0.0610922,2477.9,2477.8,12.92107381]
[1730703077700,0.0610922,2477.9,2477.8,12.62088974]
[1730703078030,0.0610922,2477.9,2477.8,12.74637444]
[1730703078197,0.0610922,2477.9,2477.8,13.2206833]
[1730703081224,0.0610922,2477.9,2477.8,13.22051733]
[1730703081427,0.0610922,2477.9,2477.8,12.92066007]
[1730703082436,0.0610922,2477.9,2477.8,11.87935815]
[1730703082737,0.0610922,2477.9,2477.8,12.9207984]
[1730703084645,0.0610922,2477.9,2477.8,12.92047312]
[1730703085644,0.0610922,2477.9,2477.8,11.87935815]
[1730703085847,0.0610922,2477.9,2477.8,11.87923457]
[1730703086251,0.0610922,2477.9,2477.8,12.92034825]
[1730703086542,0.0610922,2477.9,2477.8,11.87923457]
[1730703088148,4.82371,2478.8,2478.1,0.7999]
[1730703088360,4.82371,2478.8,2478.3,4.03492]
[1730703088515,0.7895,2478.8,2478.4,0.0806897]
[1730703088715,0.7895,2478.8,2478.4,1.79133602]
[1730703089062,0.7895,2478.8,2478.7,4.03437]
[1730703089349,0.7903,2479.0,2478.9,4.03395]
[1730703089536,0.7903,2479.0,2478.9,5.67824139]
[1730703089849,0.7903,2479.0,2478.9,5.74388408]
[1730703092329,0.7903,2479.0,2478.9,7.02170949]
[1730703092954,0.0610922,2479.1,2478.9,7.02170949]
[1730703093320,0.0610922,2479.1,2479.0,4.59388]
[1730703093521,0.0610922,2479.1,2479.0,4.58388]
[1730703093745,0.0610922,2479.1,2479.0,4.09938762]
[1730703094045,0.0610922,2479.1,2479.0,1.17305306]
[1730703094261,0.0610922,2479.1,2479.0,0.06550762]
[1730703095679,0.0610922,2479.1,2479.0,4.09938762]
[1730703095992,0.0610922,2479.1,2479.0,0.06550762]
[1730703104581,0.0610922,2479.1,2479.0,4.18005621]
[1730703104897,0.0610922,2479.1,2479.0,0.06550762]
[1730703106270,0.0610922,2479.1,2479.0,5.37718152]
[1730703106464,0.0610922,2479.1,2479.0,5.45785008]
[1730703106818,0.0610922,2479.1,2479.0,1.34330152]
[1730703106968,0.0610922,2479.1,2479.0,0.06550762]
[1730703107359,0.0610922,2479.1,2478.8,4.03406]
[1730703107575,0.0610922,2479.1,2479.0,0.06547475]
[1730703108113,0.0610922,2479.1,2478.8,4.03406]
[1730703108393,0.0610922,2479.1,2479.0,0.06547475]
[1730703108581,0.0610922,2479.1,2478.9,0.06560983]
[1730703108789,0.0610922,2479.1,2478.9,0.64000595]
[1730703110061,0.0610922,2479.1,2478.9,6.31820734]
[1730703110302,0.0610922,2479.1,2479.0,4.03388]
[1730703110503,0.0610922,2479.1,2479.0,4.09935475]
[1730703112280,0.0610922,2479.1,2479.0,0.06547475]
[1730703112474,0.0610922,2479.1,2479.0,5.13459198]
[1730703113876,0.0610922,2479.1,2479.0,5.90599198]
[1730703115511,0.0610922,2479.1,2479.0,6.45599198]
[1730703117491,0.0610922,2479.1,2479.0,5.68459198]
[1730703117664,0.0610922,2479.1,2479.0,1.10071198]
[1730703117865,0.0610922,2479.1,2479.0,0.06547475]
[1730703118480,0.0610922,2479.1,2479.0,4.73002032]
[1730703118695,0.0610922,2479.1,2479.0,4.64935475]
[1730703121509,0.0610922,2479.1,2479.0,8.50140926]
[1730703121711,0.0610922,2479.1,2479.0,11.05825816]
[1730703122021,1.9423,2480.2,2479.7,4.03259]
[1730703122171,1.9423,2480.2,2479.7,4.64429139]
[1730703122378,0.7799,2479.9,2479.8,0.06435865]
[1730703122682,4.81232,2479.9,2479.5,1.64429139]
[1730703122868,4.81232,2479.9,2479.8,0.06435559]
[1730703123072,0.7799,2479.9,2479.5,1.64429139]
[1730703123274,0.7799,2479.9,2479.8,0.06435559]
[1730703123512,0.7799,2479.9,2479.6,4.90165214]
[1730703123710,0.7799,2479.9,2479.8,0.06435559]
[1730703123912,0.7799,2479.9,2479.6,4.90165214]
[1730703124111,4.81201,2480.1,2479.8,0.06435559]
[1730703124340,4.81201,2480.1,2479.7,1.70870099]
[1730703124607,4.03226,2480.0,2479.9,0.06413964]
[1730703124827,4.03226,2480.0,2479.6,0.86875214]
[1730703124828,4.03226,2480.0,2479.8,0.06427462]
[1730703124974,4.03226,2480.0,2479.9,0.06413964]
[1730703125420,4.03226,2480.0,2479.6,0.86875214]
[1730703125610,4.812,2480.1,2479.9,0.06413964]
[1730703125797,4.812,2480.1,2479.6,4.90165214]
[1730703126115,4.812,2480.1,2479.6,0.86875214]
[1730703126418,4.812,2480.1,2479.7,0.0644096]
[1730703126910,0.7799,2480.1,2479.7,5.74143099]
[1730703127110,0.7799,2480.1,2479.7,2.7730213]
[1730703129602,0.7799,2480.1,2479.7,6.8057613]
[1730703130109,0.7799,2480.1,2479.7,6.8056413]
[1730703130445,1.1624,2480.2,2479.9,1.64429139]
[1730703130653,1.1624,2480.2,2480.0,0.08063548]
[1730703130801,1.1624,2480.2,2480.0,4.1768187]
[1730703131000,1.1624,2480.2,2480.1,11.65497278]
[1730703131432,1.1624,2480.2,2480.1,11.71881883]
[1730703134104,0.3212718,2480.2,2480.1,11.71881883]
[1730703141919,0.7857,2481.3,2480.7,0.01]
[1730703142148,0.7857,2481.3,2480.8,5.67516139]
[1730703142365,0.7857,2481.3,2480.8,10.67766353]
[1730703142536,0.7857,2481.3,2480.8,6.64679353]
[1730703142730,0.7857,2481.3,2480.9,0.06256225]
[1730703143962,4.03015,2481.3,2480.9,0.06256225]
[1730703144122,0.7603,2481.2,2480.9,0.06256225]
[1730703144495,0.7603,2481.2,2481.0,0.06242739]
[1730703144840,0.7603,2481.2,2480.7,7.04109]
[1730703145044,0.7603,2481.2,2480.8,0.55]
[1730703145247,0.7603,2481.2,2480.8,0.61269711]
[1730703145567,4.79065,2481.2,2480.8,0.06269711]
[1730703145782,4.79109,2480.9,2480.8,0.06269711]
[1730703145933,4.79127,2480.8,2480.3,3.01]
[1730703146278,4.79127,2480.8,2480.3,3.87961114]
[1730703146562,4.79127,2480.8,2480.3,4.91135114]
[1730703146751,4.79127,2480.8,2480.3,0.86961114]
[1730703146961,0.7603,2480.6,2480.2,5.67611139]
[1730703147157,0.7603,2480.6,2480.3,4.03176]
[1730703147358,0.7603,2480.6,2480.2,9.70794139]
[1730703148073,0.7603,2480.6,2480.3,4.03172]
[1730703148472,0.7603,2480.6,2480.4,5.7564806]
[1730703148650,0.7603,2480.6,2480.4,6.73531066]
[1730703149771,0.7603,2480.6,2480.4,5.67586139]
[1730703151064,4.03072,2481.0,2480.4,5.67586139]
[1730703151065,0.7603,2481.0,2480.7,4.03107]
[1730703151242,0.7603,2481.0,2480.8,4.03094]
[1730703151440,0.7603,2481.2,2480.9,1.64429139]
[1730703151775,0.7603,2481.2,2480.9,5.67498139]
[1730703151960,0.7603,2481.2,2481.0,4.03061]
[1730703152160,0.7603,2481.5,2481.1,5.75536291]
[1730703152742,0.7603,2481.5,2481.1,5.67476139]
[1730703152941,0.7603,2481.5,2481.1,5.67466139]
[1730703153279,0.7603,2481.5,2481.2,4.0303]
[1730703153691,0.7603,2481.5,2481.1,5.00190614]
[1730703154045,0.7603,2481.5,2481.1,4.03037]
[1730703154285,0.7603,2481.5,2481.2,0.06010027]
[1730703155580,4.79014,2481.5,2481.2,0.06010027]
[1730703155788,4.02999,2481.4,2481.2,0.06010027]
[1730703155985,4.79014,2481.5,2480.9,4.03068]
[1730703156140,4.79014,2481.5,2481.3,0.05996545]
[1730703156346,4.79014,2481.5,2480.9,8.06138]
[1730703156681,0.7603,2481.5,2480.9,4.03068]
[1730703156893,0.7603,2481.5,2481.1,8.06069]
[1730703157187,0.7603,2481.5,2481.2,4.0302]
[1730703157488,0.7603,2481.5,2481.2,4.90237182]
[1730703158387,0.7603,2481.5,2481.3,4.11063054]
[1730703158680,0.0610922,2481.6,2481.4,4.08978478]
[1730703159180,0.0610922,2481.6,2481.4,0.05981478]
[1730703159582,0.0610922,2481.6,2481.3,4.03006]
[1730703159883,0.0610922,2481.6,2481.4,0.05981478]
[1730703160441,0.0610922,2481.6,2481.2,4.03016]
[1730703160641,0.0610922,2481.6,2481.3,0.05994959]
[1730703160884,0.0610922,2481.6,2481.2,4.03016]
[1730703161093,0.0610922,2481.6,2481.3,0.05994959]
[1730703161266,0.0610922,2481.6,2481.3,0.40901096]
[1730703161475,0.0610922,2481.6,2481.4,0.05981478]
[1730703176281,0.0610922,2481.6,2481.4,0.87271478]
[1730703176503,0.0610922,2481.6,2481.5,4.02982]
[1730703176670,0.0610922,2481.6,2481.5,4.1700776]
[1730703176871,0.0610922,2481.6,2481.5,6.91557099]
[1730703177405,0.0610922,2481.6,2481.5,5.74563218]
[1730703179367,0.0610922,2481.6,2481.5,8.74563218]
[1730703180282,0.0610922,2481.6,2481.5,9.55853218]
[1730703180780,0.0610922,2481.6,2481.5,9.56853218]
[1730703182163,0.0610922,2481.6,2481.5,9.55853218]
[1730703188505,0.0610922,2481.6,2481.5,8.74563218]
[1730703190404,0.0610922,2481.6,2481.5,1.71581218]
[1730703190616,0.0610922,2481.6,2481.5,0.05967018]
[1730703190939,0.0610922,2481.6,2481.5,0.05759022]
[1730703191311,0.0610922,2481.6,2481.3,3.0]
[1730703191509,0.0610922,2481.6,2481.4,0.05772502]
[1730703192318,0.0610922,2481.6,2481.2,4.45110803]
[1730703192523,0.0610922,2481.6,2481.3,0.50297063]
[1730703195602,4.80834,2481.5,2481.3,0.05785983]
[1730703195801,4.80848,2481.4,2481.3,0.05785983]
[1730703196006,4.80848,2481.4,2481.2,0.42092803]
[1730703196232,4.80848,2481.4,2481.3,0.0578882]
[1730703196647,0.7785,2481.3,2481.2,0.42092803]
[1730703196944,4.80864,2481.3,2481.2,0.42092803]
[1730703198921,0.7785,2481.3,2481.2,0.42092803]
[1730703199216,0.7785,2481.3,2481.2,0.47897421]
[1730703200361,0.7785,2481.3,2481.2,0.93798578]
[1730703201457,0.0610922,2481.6,2481.3,0.7997]
[1730703201763,0.0610922,2481.6,2481.5,4.02982]
[1730703202171,0.0610922,2481.6,2481.5,4.08748788]
[1730703203077,0.0610922,2481.6,2481.5,0.05766788]
[1730703203571,0.0610922,2481.6,2481.4,4.02996]
[1730703203771,0.0610922,2481.6,2481.5,0.88274314]
[1730703203952,0.0610922,2481.6,2481.5,0.96333113]
[1730703204148,0.0610922,2481.6,2481.5,4.99315113]
[1730703204567,0.0610922,2481.6,2481.5,4.91256314]
[1730703204793,0.0610922,2481.6,2481.5,4.99314801]
[1730703205002,0.0610922,2481.6,2481.5,4.91256314]
[1730703206278,0.0610922,2481.6,2481.5,4.99314532]
[1730703206509,0.0610922,2481.6,2481.5,4.91256314]
[1730703207509,0.0610922,2481.6,2481.5,8.54314532]
[1730703207663,0.0610922,2481.6,2481.5,8.46256314]
[1730703208278,0.0610922,2481.6,2481.5,9.25176314]
[1730703210403,0.0610922,2481.6,2481.5,9.26176314]
[1730703210612,0.0610922,2481.6,2481.5,9.56043179]
[1730703213095,0.0610922,2481.6,2481.5,9.73387036]
[1730703213290,0.0610922,2481.6,2481.5,9.74387036]
[1730703217150,0.0610922,2481.6,2481.5,9.74379715]
[1730703217437,0.0610922,2481.6,2481.5,9.57035858]
[1730703217638,0.0610922,2481.6,2481.5,9.57035246]
[1730703219643,0.0610922,2481.6,2481.5,9.56035246]
[1730703220240,0.0610922,2481.6,2481.5,5.46256314]
[1730703221023,0.0610922,2481.6,2481.5,1.43274314]
[1730703221539,0.0610922,2481.6,2481.5,4.43274314]
[1730703222267,0.8565922,2481.6,2481.5,4.43274314]
[1730703222464,0.8565922,2481.6,2481.5,0.05766266]
[1730703222867,0.8565922,2481.6,2481.4,0.55]
[1730703223026,0.8565922,2481.6,2481.5,0.05759472]
[1730703225158,0.8565922,2481.6,2481.5,4.08741472]
[1730703225331,0.8565922,2481.6,2481.5,0.86345068]
[1730703226852,0.8565922,2481.6,2481.5,0.05759472]
[1730703227136,0.8565922,2481.6,2481.4,3.0]
[1730703227376,0.8565922,2481.6,2481.5,0.05763951]
[1730703231503,0.8565922,2481.6,2481.5,4.08745951]
[1730703232925,4.8862422,2481.6,2481.5,0.05763951]
[1730703233421,0.7955,2481.5,2481.3,0.42114483]
[1730703234086,4.82548,2481.4,2481.3,0.42114483]
[1730703235292,0.7955,2481.4,2481.3,0.42114483]
[1730703236528,4.82548,2481.4,2481.3,0.42114483]
[1730703237011,6.15877919,2481.4,2481.3,0.42114483]
[1730703237381,4.82569,2481.3,2480.9,3.0]
[1730703237587,4.03034,2481.2,2481.0,0.42123019]
[1730703237826,0.7955,2481.1,2481.0,0.42123019]
[1730703238500,4.88718585,2481.1,2481.0,0.42123019]
[1730703238698,0.7955,2481.0,2480.6,4.03118]
[1730703238898,0.7955,2481.0,2480.7,0.83042993]
[1730703239116,0.7955,2481.0,2480.7,0.42126365]
[1730703239926,4.03065,2481.0,2480.7,0.42126365]
[1730703240129,0.7955,2480.9,2480.7,0.42126365]
[1730703240792,0.85671585,2480.9,2480.7,0.42126365]
[1730703241228,0.7955,2480.9,2480.7,0.42126365]
[1730703243733,4.09216585,2480.8,2480.7,0.42126365]
[1730703243932,4.03125,2480.7,2480.2,4.03179]
[1730703244105,0.85671585,2480.6,2480.2,4.03179]
[1730703244308,0.7955,2480.6,2480.3,0.05934299]
[1730703244627,0.7955,2480.6,2480.2,4.45312788]
[1730703244868,0.7955,2480.6,2480.4,0.05920807]
[1730703245011,0.7955,2480.6,2480.3,0.05934299]
[1730703245198,0.7955,2480.6,2480.2,4.45312788]
[1730703245537,0.7955,2480.6,2480.4,0.05927234]
[1730703245831,0.7955,2480.6,2480.5,0.05913743]
[1730703246035,0.7955,2480.6,2480.2,4.45312788]
[1730703246236,0.7955,2480.6,2480.5,0.05913743]
[1730703246435,0.7955,2480.6,2480.2,4.45312788]
[1730703246599,0.7955,2480.6,2480.5,0.05913743]
[1730703246798,0.7955,2480.6,2480.2,4.45312788]
[1730703247102,0.7955,2480.6,2480.5,0.05913743]
[1730703247302,0.7955,2480.6,2480.2,4.45312788]
[1730703247502,0.7955,2480.6,2480.5,0.05913743]
[1730703247693,1.68737859,2480.6,2480.2,4.45312788]
[1730703247899,0.7955,2480.6,2480.5,0.05913743]
[1730703248239,4.8268,2480.6,2480.5,0.05913743]
[1730703248399,4.8268,2480.6,2480.2,0.42133788]
[1730703248599,4.8268,2480.6,2480.5,0.05911077]
[1730703248945,0.766,2480.3,2480.2,0.42133788]
[1730703249941,0.766,2480.3,2479.9,7.03233]
[1730703250111,0.766,2480.3,2479.6,4.03279]
[1730703250112,0.766,2480.1,2479.6,4.03279]
[1730703250446,0.766,2480.5,2480.1,4.03206]
[1730703250610,0.06121585,2480.4,2479.9,4.03239]
[1730703250947,0.766,2480.5,2480.1,4.032]
[1730703251437,0.82721585,2480.5,2480.1,4.032]
[1730703252463,0.766,2480.5,2480.2,4.03187]
[1730703252753,0.766,2480.5,2480.1,4.84679]
[1730703253120,0.766,2480.5,2480.2,4.03193]
[1730703253356,0.766,2480.5,2480.2,5.04075714]
[1730703253718,0.766,2480.5,2480.2,4.9601259]
[1730703254157,0.766,2480.7,2480.2,5.04075564]
[1730703254353,0.766,2480.7,2480.2,4.9601259]
[1730703254552,0.06121585,2480.6,2480.2,4.9601259]
[1730703254853,0.766,2480.7,2480.3,5.01234159]
[1730703255052,4.03072,2481.0,2480.5,8.06276]
[1730703255053,0.766,2480.9,2480.5,8.06276]
[1730703255251,0.766,2480.9,2480.5,8.06267]
[1730703255629,0.766,2480.9,2480.5,4.03133]
[1730703255957,0.766,2480.9,2480.5,8.06267]
[1730703256259,0.766,2480.9,2480.6,4.03127]
[1730703256819,0.766,2480.9,2480.7,4.03111]
[1730703257019,0.82721585,2481.1,2480.7,4.03111]
[1730703257249,0.82721585,2481.1,2480.7,4.03102]
[1730703257846,0.82721585,2481.3,2480.8,4.03085]
[1730703258038,0.82721585,2481.3,2480.8,4.837037]
[1730703258571,0.766,2481.3,2480.9,4.11135866]
[1730703258738,0.766,2481.3,2480.9,4.03075]
[1730703258940,4.79618,2481.3,2480.8,1.620987]
[1730703259157,4.79618,2481.3,2480.9,0.05854883]
[1730703259158,0.766,2481.3,2480.9,0.05854883]
[1730703259357,0.766,2481.3,2480.9,3.92959941]
[1730703260035,0.766,2481.3,2480.9,0.92959941]
[1730703260252,4.85736585,2481.3,2480.9,0.05854883]
[1730703260476,0.766,2481.3,2480.8,4.03094]
[1730703260679,0.766,2481.3,2481.0,0.05839679]
[1730703260854,0.766,2481.3,2480.9,0.05853164]
[1730703261048,0.766,2481.3,2480.8,4.03094]
[1730703261281,0.766,2481.3,2481.0,0.05839679]
[1730703261573,4.79621,2481.3,2481.1,0.05826195]
[1730703261878,4.79621,2481.3,2480.7,8.06194]
[1730703262068,4.85742585,2481.3,2481.2,0.05812711]
[1730703262674,4.85742585,2481.3,2480.7,4.03097]
[1730703262877,4.85742585,2481.3,2481.2,0.05812711]
[1730703263077,4.85742585,2481.3,2480.7,4.03097]
[1730703263255,4.85742585,2481.3,2481.2,0.05812711]
[1730703263456,4.85742585,2481.3,2480.7,4.03097]
[1730703263647,4.85742585,2481.3,2481.2,0.05812711]
[1730703263850,4.78963,2481.2,2480.5,7.03136]
[1730703264174,4.85084585,2481.2,2480.5,7.03136]
[1730703264379,4.85084585,2481.2,2480.7,4.03111]
[1730703264971,4.78963,2481.2,2480.7,4.03111]
[1730703266007,4.03049,2481.1,2480.5,7.03134]
[1730703266207,4.03049,2481.1,2480.6,0.779354]
[1730703266366,0.06121585,2481.1,2480.6,0.779354]
[1730703266572,4.03066,2481.0,2480.6,0.779354]
[1730703266772,0.7593,2480.9,2480.4,7.79371]
[1730703267405,4.7901,2480.9,2480.4,7.03151]
[1730703267613,0.7593,2480.9,2480.4,7.03151]
[1730703270014,0.7593,2480.9,2480.5,8.0627]
[1730703270377,0.7593,2480.9,2480.5,4.03135]
[1730703270578,0.7593,2480.9,2480.5,5.01194016]
[1730703273382,0.82051585,2480.9,2480.5,4.03135]
[1730703273896,0.82051585,2480.9,2480.4,7.5816]
[1730703274110,0.82051585,2480.9,2480.6,0.05895421]
[1730703274288,0.82051585,2480.9,2480.5,0.05908911]
[1730703274490,0.7593,2480.9,2480.7,0.05881932]
[1730703274711,4.85101585,2481.1,2480.6,0.05895421]
[1730703274931,4.7898,2481.1,2480.8,0.05868445]
[1730703275082,4.7898,2481.1,2480.7,0.05881783]
[1730703275277,0.7593,2481.1,2480.6,4.11185767]
[1730703275512,0.7593,2481.1,2480.8,0.05868295]
[1730703275677,0.7593,2481.1,2480.7,5.6663536]
[1730703275883,0.7593,2481.1,2480.9,0.05854809]
[1730703276083,0.7593,2481.1,2480.6,4.03126]
[1730703276293,0.7593,2481.1,2481.0,0.05841323]
[1730703276530,0.7593,2481.1,2480.7,4.031]
[1730703276693,0.7593,2481.1,2481.0,0.05841099]
[1730703276893,0.7593,2481.1,2480.7,4.031]
[1730703277093,0.7593,2481.1,2481.0,0.05841099]
[1730703277529,0.7593,2481.1,2480.7,4.031]
[1730703277726,0.7593,2481.1,2481.0,0.05841099]
[1730703277904,0.7593,2481.1,2480.7,4.031]
[1730703278110,0.7593,2481.1,2481.0,0.05841099]
[1730703278328,0.7593,2481.1,2480.7,4.031]
[1730703278496,0.7593,2481.1,2481.0,0.05841099]
[1730703278915,4.09139585,2481.3,2480.7,8.06201]
[1730703279122,4.85069585,2481.3,2481.0,0.05841099]
[1730703279322,0.82051585,2481.3,2480.9,4.03063]
[1730703279523,0.7593,2481.3,2481.1,0.05827615]
[1730703279722,0.7593,2481.3,2481.0,0.05839754]
[1730703279956,0.7593,2481.3,2481.2,0.05812786]
[1730703280313,0.7593,2481.3,2480.9,4.509913]
[1730703280509,0.7593,2481.3,2481.2,0.05812786]
[1730703280838,4.78947,2481.3,2480.9,0.479283]
[1730703281139,4.78427,2481.3,2481.2,0.05810769]
[1730703281449,0.7541,2481.0,2480.6,3.0]
[1730703281734,4.78473,2481.0,2480.6,3.0]
[1730703282038,4.78473,2481.0,2480.5,5.25220346]
[1730703282204,4.78473,2481.0,2480.5,6.18058881]
[1730703282630,4.78473,2481.0,2480.5,5.38098881]
[1730703282999,4.84594585,2481.0,2480.5,4.45260346]
[1730703283717,4.03079,2480.9,2480.5,0.42127346]
[1730703283917,8.0617,2480.9,2480.5,0.42127346]
[1730703284218,0.7541,2480.8,2480.5,0.42127346]
[1730703285743,4.78507,2480.8,2480.5,0.42127346]
[1730703286037,0.7541,2480.8,2480.5,0.42127346]
[1730703286341,0.81531585,2480.8,2480.5,0.42127346]
[1730703286915,4.03115,2480.7,2480.5,0.42127346]
[1730703289151,0.81531585,2480.8,2480.6,0.05891237]
[1730703289712,4.84626585,2480.8,2480.6,0.05891237]
[1730703289974,4.03112,2480.7,2480.6,0.05891237]
[1730703290955,4.78522,2480.7,2480.6,0.05891237]
[1730703291437,4.84643585,2480.7,2480.6,0.05891237]
[1730703291629,4.84643585,2480.7,2480.1,4.03196]
[1730703291832,4.03131,2480.6,2480.2,0.42136023]
[1730703292369,4.09252585,2480.6,2480.2,0.42136023]
[1730703293274,4.09250585,2480.6,2480.2,0.42136023]
[1730703295468,0.06121585,2480.6,2480.2,0.42136023]
[1730703295957,4.09258585,2480.6,2480.2,0.42136023]
[1730703298375,5.03313412,2480.6,2480.2,0.42136023]
[1730703299082,0.7541,2480.4,2480.2,0.42136023]
[1730703299260,0.81531585,2480.4,2480.2,0.42136023]
[1730703299839,4.03177,2480.3,2480.2,0.42136023]
[1730703300288,4.78587,2480.3,2480.2,0.42136023]
[1730703300443,4.03199,2480.2,2479.7,0.55]
[1730703300773,0.7541,2480.0,2479.8,0.42142692]
[1730703303879,0.81531585,2480.0,2479.8,0.42142692]
[1730703304045,0.7541,2480.0,2479.9,0.05989948]
[1730703304250,0.81531585,2480.0,2479.9,0.05989948]
[1730703304864,4.84756585,2480.0,2479.9,0.05989948]
[1730703305062,5.73553143,2480.0,2479.9,0.05989948]
[1730703308085,5.73553143,2480.0,2479.5,0.42148045]
[1730703308292,4.84756585,2480.0,2479.5,0.42148045]
[1730703308653,0.81531585,2480.0,2479.6,0.06035527]
[1730703308861,4.03242,2479.9,2479.6,0.06035527]
[1730703313404,0.06121585,2479.8,2479.6,0.06035527]
[1730703313970,4.09379585,2479.8,2479.6,0.06035527]
[1730703316490,4.03274,2479.7,2479.6,0.06035527]
[1730703316694,4.79184,2479.7,2479.6,0.06035527]
[1730703317370,0.7591,2479.7,2479.6,0.06035527]
[1730703320418,4.79184,2479.7,2479.6,0.06035527]
[1730703320776,4.85305585,2479.7,2479.6,0.06035527]
[1730703321721,7.54764439,2479.7,2479.6,0.06035527]
[1730703322019,4.03315,2479.5,2479.1,1.23373602]
[1730703322218,0.7591,2479.3,2479.1,0.42153602]
[1730703322424,0.82031585,2479.3,2479.1,0.42153602]
[1730703322923,4.85373585,2479.3,2479.1,0.42153602]
[1730703324293,4.03355,2479.2,2479.1,0.42153602]
[1730703327187,4.03378,2479.1,2478.5,4.7871]
[1730703327494,4.09515585,2479.0,2478.6,0.42162681]
[1730703328292,4.91245585,2479.0,2478.6,0.42162681]
[1730703329094,4.91245585,2479.0,2478.7,0.06172777]
[1730703329429,4.03406,2478.9,2478.7,0.06172777]
[1730703330626,4.09542585,2478.8,2478.7,0.06172777]
[1730703330793,0.06121585,2478.8,2478.7,0.06172777]
[1730703330993,4.09542585,2478.8,2478.7,0.06172777]
[1730703331619,0.06121585,2478.8,2478.7,0.06172777]
[1730703332422,4.09542585,2478.8,2478.7,0.06172777]
[1730703333591,6.07746889,2478.8,2478.7,0.06172777]
[1730703335030,6.07746889,2478.8,2478.2,4.45684968]
[1730703335230,4.91272585,2478.8,2478.7,0.06181907]
[1730703335403,1.64183723,2478.7,2478.2,4.45684968]
[1730703335607,0.06121585,2478.6,2478.2,4.45684968]
[1730703335919,0.06121585,2478.6,2478.2,0.42169968]
[1730703338334,1.64183723,2478.9,2478.4,0.7525]
[1730703338519,0.87851585,2479.0,2478.4,0.7525]
[1730703338722,0.87851585,2479.0,2478.5,4.03469]
[1730703338723,4.91247585,2479.0,2478.5,4.03469]
[1730703340213,4.91247585,2479.0,2478.4,4.78721]
[1730703340530,4.91247585,2479.0,2478.4,10.30300839]
[1730703340700,4.91247585,2479.0,2478.5,4.03465]
[1730703341210,0.87851585,2479.0,2478.5,4.03465]
[1730703341412,0.06121585,2479.0,2478.6,4.03444]
[1730703341613,0.06121585,2479.0,2478.6,5.06992584]
[1730703349138,0.06121585,2479.0,2478.7,0.06184003]
[1730703356843,0.06121585,2479.0,2478.5,9.29562215]
[1730703357045,0.06121585,2479.0,2478.8,0.06170867]
[1730703357207,0.06121585,2479.0,2478.5,9.29562215]
[1730703357412,0.06121585,2479.0,2478.9,0.06157359]
[1730703357611,0.06121585,2479.0,2478.5,9.29562215]
[1730703358152,0.06121585,2479.0,2478.6,0.06197887]
[1730703359847,0.06121585,2479.0,2478.6,4.09648887]
[1730703362159,0.06121585,2479.0,2478.6,0.06197887]
[1730703362534,0.06121585,2479.0,2478.6,4.09645887]
[1730703365093,4.09509585,2479.0,2478.6,4.09645887]
[1730703365669,4.09509585,2479.0,2478.6,0.06197887]
[1730703366414,4.09509585,2479.0,2478.6,0.36290247]
[1730703366882,0.7938,2478.9,2478.6,0.36290247]
[1730703367255,0.7938,2478.9,2478.6,0.23619117]
[1730703368286,4.09549585,2478.8,2478.6,0.06197887]
[1730703368580,5.15201516,2478.8,2478.6,0.06197887]
[1730703369151,4.82817,2478.7,2478.6,0.06197887]
[1730703369469,5.09072931,2478.8,2478.6,0.06197887]
[1730703369673,5.15194516,2478.8,2478.6,0.06197887]
[1730703369982,5.15194516,2478.8,2478.7,0.06186325]
[1730703370148,5.15194516,2478.8,2478.4,0.42167862]
[1730703370346,5.15194516,2478.8,2478.5,0.06213347]
[1730703371083,4.03441,2478.7,2478.5,0.06213347]
[1730703371246,0.06121585,2478.6,2478.5,0.06213347]
[1730703372376,0.06121585,2478.6,2478.5,0.36346429]
[1730703372584,4.09542585,2478.8,2478.5,0.36346429]
[1730703372786,4.09542585,2478.8,2478.5,0.23648616]
[1730703373084,8.12975585,2478.8,2478.5,0.23648616]
[1730703373259,4.03421,2478.8,2478.5,0.23652879]
[1730703373463,4.09542585,2478.8,2478.5,0.06213347]
[1730703374394,8.12974585,2478.8,2478.5,0.06213347]
[1730703374561,4.03421,2478.8,2478.5,0.06213347]
[1730703374761,4.09542585,2478.8,2478.5,0.06213347]
[1730703374962,8.12975585,2478.8,2478.5,0.23652732]
[1730703375183,8.06854,2478.8,2478.5,0.23652732]
[1730703375407,0.06121585,2478.7,2478.5,0.23652732]
[1730703375862,4.09559585,2478.7,2478.5,0.23652732]
[1730703376200,4.09559585,2478.7,2478.5,0.06213347]
[1730703378376,4.09565585,2478.7,2478.5,0.06213347]
[1730703381801,4.8279,2478.9,2478.5,0.06213347]
[1730703382094,0.06121585,2478.8,2478.5,1.01704965]
[1730703382296,0.06121585,2478.8,2478.6,0.47584496]
[1730703382598,0.06121585,2478.8,2478.7,0.06188495]
[1730703382773,0.06121585,2478.9,2478.7,0.36329969]
[1730703382972,0.06121585,2478.9,2478.7,0.06188495]
[1730703383272,4.09526585,2478.9,2478.7,0.06188495]
[1730703383681,0.06121585,2478.9,2478.5,5.2368285]
[1730703383902,0.06121585,2478.9,2478.8,0.06174986]
[1730703384109,0.06121585,2478.9,2478.6,0.47588233]
[1730703384266,0.06121585,2478.9,2478.8,0.06174986]
[1730703384469,0.81211585,2479.0,2478.8,0.06174986]
[1730703384801,0.81211585,2479.0,2478.9,0.06161478]
[1730703385135,0.81211585,2479.0,2478.7,0.4758951]
[1730703385309,0.81211585,2479.0,2478.9,0.06161478]
[1730703385809,0.81211585,2479.0,2478.6,4.03445]
[1730703385981,0.81211585,2479.0,2478.9,0.06161478]
[1730703386185,0.81211585,2479.0,2478.6,4.03445]
[1730703386397,0.81211585,2479.0,2478.9,0.06161478]
[1730703386565,0.81211585,2479.0,2478.8,0.30144158]
[1730703386770,0.81211585,2479.0,2478.9,0.06161478]
[1730703387005,0.81211585,2479.0,2478.8,0.30144361]
[1730703387223,0.81211585,2479.0,2478.7,0.1744186]